bitfinex-derivatives/quotes_BTCF0:USTF0_20210105
["timestamp","ask_amount","ask_price","bid_price","bid_amount"]
[1609878594551,0.13388,33837.0,33831.0,0.13632608]
[1609878595051,0.13632608,33832.0,33831.0,0.13632608]
[1609878595251,0.22442608,33832.0,33831.0,0.13632608]
[1609878595451,0.13632608,33832.0,33831.0,0.13632608]
[1609878598254,0.22392608,33832.0,33831.0,0.13632608]
[1609878598553,1.22392608,33832.0,33831.0,0.13632608]
[1609878598955,1.13632608,33832.0,33831.0,0.13632608]
[1609878600555,0.13632608,33832.0,33831.0,0.13632608]
[1609878601457,1.0,33835.0,33831.0,0.13632608]
[1609878602656,0.13388,33837.0,33831.0,0.13632608]
[1609878602856,0.2749,33847.0,33831.0,0.13632608]
[1609878603056,0.2749,33847.0,33838.0,0.13632608]
[1609878603258,4.4464,33863.0,33838.0,0.13632608]
[1609878603458,1.5,33881.0,33838.0,0.13632608]
[1609878603658,0.088,33847.0,33842.0,3.7793]
[1609878604161,0.088,33847.0,33842.0,3.33548959]
[1609878604562,1.00029756,33843.0,33842.0,3.33548959]
[1609878605062,1.13662364,33843.0,33842.0,3.33548959]
[1609878605362,1.13662364,33843.0,33834.0,0.13632608]
[1609878605562,1.27270364,33843.0,33835.0,4.9091]
[1609878606667,1.0,33838.0,33835.0,4.9091]
[1609878607065,0.13632608,33836.0,33835.0,4.9091]
[1609878607465,0.22739608,33836.0,33835.0,4.9091]
[1609878607666,0.22739608,33836.0,33834.0,0.13632608]
[1609878609368,0.22739608,33836.0,33835.0,4.1045]
[1609878611370,0.22739608,33836.0,33834.0,0.13632608]
[1609878612171,0.22739608,33836.0,33824.0,3.8838]
[1609878612570,1.0,33835.0,33824.0,3.8838]
[1609878613272,1.0,33835.0,33827.0,0.13632608]
[1609878613671,1.0,33835.0,33831.0,4.4041]
[1609878614573,1.0,33832.0,33831.0,4.4041]
[1609878615171,1.13632608,33832.0,33831.0,4.4041]
[1609878615474,1.13632608,33832.0,33827.0,0.13632608]
[1609878616072,4.3736,33828.0,33816.0,1.0]
[1609878616482,4.46858,33828.0,33816.0,1.0]
[1609878616673,4.46858,33828.0,33810.0,0.12226]
[1609878617176,4.46858,33828.0,33823.0,0.13632608]
[1609878617776,0.09498,33828.0,33823.0,0.13632608]
[1609878619276,0.13632608,33824.0,33823.0,0.13632608]
[1609878619978,0.13632608,33824.0,33810.0,0.12226]
[1609878620178,4.62422608,33824.0,33810.0,0.12226]
[1609878621178,4.62422608,33824.0,33823.0,0.13632608]
[1609878622684,5.62422608,33824.0,33823.0,0.13632608]
[1609878624381,1.13632608,33824.0,33823.0,0.13632608]
[1609878624581,4.77042608,33824.0,33823.0,0.13632608]
[1609878625482,1.13632608,33824.0,33823.0,0.13632608]
[1609878626282,1.64362608,33824.0,33823.0,0.13632608]
[1609878628485,1.0,33824.0,33823.0,0.13632608]
[1609878628687,0.09498,33828.0,33823.0,0.13632608]
[1609878628888,1.44394276,33829.0,33823.0,0.13632608]
[1609878629188,1.58026884,33829.0,33828.0,0.13632608]
[1609878630492,0.58026884,33829.0,33828.0,0.13632608]
[1609878631192,0.58026884,33829.0,33828.0,0.22382608]
[1609878631391,0.58026884,33829.0,33828.0,0.13632608]
[1609878632494,0.13632608,33829.0,33828.0,0.13632608]
[1609878633797,1.0,33833.0,33828.0,0.13632608]
[1609878634600,0.09107,33836.0,33828.0,0.13632608]
[1609878634797,1.0,33839.0,33828.0,0.13632608]
[1609878635197,1.0,33839.0,33838.0,0.13632608]
[1609878635900,1.0892,33839.0,33838.0,0.13632608]
[1609878636098,1.0,33839.0,33832.0,3.5397]
[1609878636497,0.0896,33850.0,33814.0,0.0886]
[1609878636698,3.7511,33846.0,33816.0,6.38223687]
[1609878637199,3.7511,33846.0,33834.0,0.13632608]
[1609878637902,3.8403,33846.0,33834.0,0.13632608]
[1609878638301,0.0892,33846.0,33834.0,0.13632608]
[1609878638604,1.13637756,33843.0,33834.0,0.13632608]
[1609878639304,0.13632608,33835.0,33834.0,0.13632608]
[1609878639503,0.14469,33835.0,33834.0,0.13632608]
[1609878642411,0.14469,33835.0,33834.0,0.67652608]
[1609878642813,0.05229,33835.0,33834.0,0.67652608]
[1609878643010,9e-05,33835.0,33834.0,0.67652608]
[1609878643211,0.26963618,33843.0,33834.0,0.67652608]
[1609878644314,0.26963618,33843.0,33834.0,0.13632608]
[1609878644513,0.26963618,33843.0,33837.0,4.4579]
[1609878644713,0.26963618,33843.0,33842.0,1.0]
[1609878644915,1.0,33867.0,33844.0,0.13608]
[1609878645313,1.13632608,33867.0,33863.0,0.13632608]
[1609878646515,0.13632608,33867.0,33863.0,0.13632608]
[1609878648918,0.13632608,33867.0,33864.0,0.0872]
[1609878649116,0.13632608,33867.0,33863.0,0.13632608]
[1609878649317,0.25508608,33867.0,33863.0,0.13632608]
[1609878649716,0.30718566,33862.0,33859.0,3.542]
[1609878650117,0.16227174,33867.0,33853.0,1.0]
[1609878650319,3.8829,33864.0,33853.0,1.0]
[1609878651419,0.16227174,33867.0,33863.0,0.13632608]
[1609878654422,0.04351174,33867.0,33863.0,0.13632608]
[1609878654623,0.04351174,33867.0,33865.0,0.6042]
[1609878654822,1.0,33879.0,33865.0,0.6042]
[1609878654823,1.0,33879.0,33866.0,0.0874]
[1609878655425,1.0,33879.0,33875.0,0.13632608]
[1609878656628,1.0,33888.0,33875.0,0.13632608]
[1609878657326,1.0,33888.0,33883.0,0.13632608]
[1609878658629,0.0891,33896.0,33883.0,0.13632608]
[1609878659231,0.14360663,33879.0,33873.0,4.3193]
[1609878661032,0.14360663,33879.0,33868.0,0.0896]
[1609878661634,0.14360663,33879.0,33864.0,0.12304]
[1609878662535,1.0,33877.0,33864.0,0.12304]
[1609878663437,1.0,33877.0,33873.0,0.13632608]
[1609878664537,0.14360663,33879.0,33873.0,0.13632608]
[1609878665336,0.13632608,33874.0,33873.0,0.13632608]
[1609878668537,1.13632608,33874.0,33873.0,0.13632608]
[1609878669438,1.0,33874.0,33873.0,0.13632608]
[1609878670538,0.13632608,33878.0,33873.0,0.13632608]
[1609878670937,0.14360663,33879.0,33873.0,0.13632608]
[1609878671438,0.14360663,33879.0,33878.0,0.13632608]
[1609878671638,0.14360663,33879.0,33868.0,0.0889]
[1609878672041,0.14360663,33879.0,33866.0,4.2611]
[1609878672240,0.14360663,33879.0,33865.0,0.0883]
[1609878672439,0.14360663,33879.0,33878.0,4.898]
[1609878672640,0.6397806,33915.0,33878.0,4.9853]
[1609878672841,0.6397806,33915.0,33878.0,0.0873]
[1609878673042,0.6397806,33915.0,33893.0,3.9405]
[1609878673441,0.6397806,33915.0,33908.0,0.13632608]
[1609878673841,0.46332453,33913.0,33908.0,0.13632608]
[1609878674040,0.37462453,33913.0,33912.0,4.6728]
[1609878675143,0.37462453,33913.0,33912.0,4.7605]
[1609878675342,0.37462453,33913.0,33912.0,4.89682608]
[1609878676541,0.37462453,33913.0,33912.0,5.89682608]
[1609878677143,0.63887676,33919.0,33912.0,5.89682608]
[1609878677343,0.63887676,33919.0,33918.0,0.13632608]
[1609878677544,0.63887676,33919.0,33918.0,0.34714704]
[1609878677744,0.63887676,33919.0,33918.0,0.44612704]
[1609878677944,4.6683,33952.0,33918.0,0.44612704]
[1609878678144,0.63642819,33962.0,33918.0,0.09898]
[1609878678346,0.63642819,33962.0,33924.0,4.4957]
[1609878679344,0.13632608,33925.0,33924.0,4.63202608]
[1609878679546,0.13632608,33925.0,33924.0,0.13632608]
[1609878680947,0.13632608,33925.0,33919.0,4.3447]
[1609878681347,0.13632608,33920.0,33919.0,4.3447]
[1609878681748,0.13632608,33920.0,33917.0,0.13632608]
[1609878682147,0.25248608,33920.0,33917.0,0.13632608]
[1609878682348,4.0445,33918.0,33899.0,0.13043]
[1609878682547,0.25248608,33920.0,33891.0,0.13269]
[1609878682747,3.3472,33904.0,33888.0,0.21464]
[1609878682947,3.47919,33904.0,33888.0,0.21464]
[1609878683149,3.47919,33904.0,33888.0,0.12734]
[1609878683348,3.47919,33904.0,33893.0,0.13632608]
[1609878683748,0.13199,33904.0,33880.0,0.13101]
[1609878684149,9e-05,33904.0,33891.0,4.4313]
[1609878684348,9e-05,33904.0,33880.0,0.13101]
[1609878684349,0.11616,33920.0,33892.0,0.088]
[1609878684549,0.01406,33920.0,33907.0,3.4453]
[1609878684749,0.299,33941.0,33907.0,3.56822]
[1609878685350,0.299,33941.0,33930.0,0.13632608]
[1609878685751,0.299,33941.0,33931.0,3.3635]
[1609878686452,0.77666524,33950.0,33931.0,3.3635]
[1609878686650,0.77666524,33950.0,33940.0,1.0]
[1609878686851,0.77666524,33950.0,33942.0,0.7049]
[1609878687252,0.77666524,33950.0,33940.0,1.0]
[1609878687451,0.14409021,33944.0,33943.0,3.94282608]
[1609878687850,0.14409021,33944.0,33943.0,0.13632608]
[1609878688853,0.13509,33944.0,33943.0,0.22412608]
[1609878689453,0.13632608,33949.0,33943.0,0.22412608]
[1609878689854,3.3287,33982.0,33943.0,0.22412608]
[1609878690454,0.0883,33981.0,33943.0,0.22412608]
[1609878690654,0.11111,33981.0,33943.0,0.13632608]
[1609878691457,0.11111,33981.0,33952.0,0.13632608]
[1609878691857,0.088,33980.0,33952.0,0.13632608]
[1609878692657,0.088,33980.0,33951.0,4.9072]
[1609878692857,4.3313,33970.0,33939.0,0.10258]
[1609878693058,4.3313,33970.0,33930.0,3.8272]
[1609878693261,4.46891,33970.0,33930.0,3.8272]
[1609878693461,4.46891,33970.0,33933.0,0.13632608]
[1609878693658,4.46891,33970.0,33930.0,3.8272]
[1609878694058,0.0885,33969.0,33930.0,3.8272]
[1609878694259,4.46891,33970.0,33930.0,3.8272]
[1609878695261,4.55591,33970.0,33930.0,3.8272]
[1609878695462,0.13632608,33953.0,33952.0,0.13632608]
[1609878697665,0.29475086,33968.0,33952.0,0.13632608]
[1609878697866,0.29475086,33968.0,33950.0,0.12365]
[1609878699368,0.29475086,33968.0,33956.0,0.13632608]
[1609878700069,0.29475086,33968.0,33950.0,0.12365]
[1609878700268,0.13761,33970.0,33950.0,0.12365]
[1609878700469,3.5829,33982.0,33950.0,0.12365]
[1609878701473,0.13632608,33954.0,33951.0,0.13632608]
[1609878703173,0.13632608,33954.0,33950.0,0.12365]
[1609878703373,0.13632608,33954.0,33949.0,0.13632608]
[1609878704179,0.13632608,33954.0,33941.0,0.14024]
[1609878704579,0.13632608,33954.0,33950.0,1.0]
[1609878705377,0.13632608,33954.0,33953.0,0.13632608]
[1609878705874,0.10322883,33953.0,33950.0,1.0]
[1609878706676,0.10322883,33953.0,33948.0,0.13851]
[1609878707477,0.10322883,33953.0,33949.0,0.13632608]
[1609878708278,0.10322883,33953.0,33942.0,4.8194]
[1609878708579,0.10322883,33953.0,33950.0,1.0]
[1609878709479,0.10322883,33953.0,33952.0,0.13632608]
[1609878709980,0.10322883,33953.0,33950.0,1.0]
[1609878710580,0.10322883,33953.0,33946.0,1.0]
[1609878711583,0.13632608,33947.0,33946.0,1.0]
[1609878714584,0.13632608,33947.0,33934.0,4.2722]
[1609878715486,0.10322883,33953.0,33942.0,0.13632608]
[1609878716989,0.10322883,33953.0,33934.0,4.2722]
[1609878717489,0.10322883,33953.0,33941.0,0.13632608]
[1609878719506,0.13632608,33948.0,33947.0,0.13632608]
[1609878726703,0.13632608,33948.0,33947.0,1.13632608]
[1609878727303,0.10322883,33953.0,33947.0,1.13632608]
[1609878727504,0.10322883,33953.0,33952.0,0.13632608]
[1609878727704,0.10322883,33953.0,33952.0,0.69662608]
[1609878728704,0.10322883,33953.0,33952.0,1.69662608]
[1609878730206,1.0,33979.0,33952.0,1.69662608]
[1609878730606,0.2924,33998.0,33952.0,0.69662608]
[1609878731609,0.2924,33998.0,33979.0,0.13632608]
[1609878732112,0.2924,33998.0,33959.0,0.12003]
[1609878732314,4.47068735,33997.0,33961.0,4.5846]
[1609878732512,4.58960735,33997.0,33961.0,4.5846]
[1609878732914,4.58062,33997.0,33961.0,4.5846]
[1609878733512,4.58062,33997.0,33968.0,0.13632608]
[1609878733712,4.58062,33997.0,33961.0,4.5846]
[1609878735515,4.58062,33997.0,33967.0,0.13632608]
[1609878735715,4.58062,33997.0,33965.0,0.13994]
[1609878737520,4.58062,33997.0,33973.0,0.13632608]
[1609878738120,0.11892,33997.0,33973.0,0.13632608]
[1609878738320,0.2924,33998.0,33974.0,3.4554]
[1609878738621,0.2924,33998.0,33982.0,1.0]
[1609878739321,0.2924,33998.0,33983.0,0.6396]
[1609878739519,0.13632608,33996.0,33990.0,0.13632608]
[1609878739722,0.27851608,33996.0,33990.0,0.13632608]
[1609878739920,0.27851608,33996.0,33990.0,3.63362608]
[1609878740620,0.27851608,33996.0,33995.0,1.0]
[1609878742724,0.27851608,33996.0,33982.0,4.5314]
[1609878743522,0.14219,33996.0,33989.0,0.13632608]
[1609878744826,0.00910106,34015.0,33989.0,0.13632608]
[1609878745627,0.13632608,33990.0,33989.0,0.13632608]
[1609878746729,0.13632608,33990.0,33989.0,1.13632608]
[1609878747129,0.13632608,33990.0,33989.0,1.0]
[1609878748732,0.13632608,33990.0,33976.0,3.9641]
[1609878749632,0.13632608,33977.0,33976.0,3.9641]
[1609878750033,0.25268608,33977.0,33976.0,3.9641]
[1609878751033,0.25268608,33977.0,33966.0,1.0]
[1609878751634,0.13632608,33967.0,33966.0,1.0]
[1609878751834,0.28639608,33967.0,33966.0,1.0]
[1609878752635,0.28639608,33967.0,33965.0,3.9793]
[1609878752936,0.28639608,33967.0,33954.0,1.0]
[1609878753734,0.13632608,33955.0,33954.0,1.0]
[1609878754635,0.13632608,33955.0,33927.0,3.5221]
[1609878755639,0.13632608,33936.0,33928.0,2.29194219]
[1609878755838,0.13632608,33936.0,33929.0,1.85618719]
[1609878756640,0.13632608,33936.0,33935.0,1.0]
[1609878757637,0.13632608,33936.0,33935.0,1.13632608]
[1609878760438,0.14698,33940.0,33935.0,1.13632608]
[1609878760638,0.14698,33940.0,33935.0,0.13632608]
[1609878761038,1.0,33951.0,33935.0,0.13632608]
[1609878761439,1.0,33951.0,33934.0,1.0]
[1609878761638,0.13632608,33935.0,33934.0,1.0]
[1609878762640,0.13632608,33935.0,33929.0,1.0]
[1609878763746,0.13632608,33930.0,33929.0,1.0]
[1609878763944,0.28629608,33930.0,33929.0,1.0]
[1609878764643,0.28629608,33930.0,33928.0,1.0]
[1609878766746,0.28629608,33930.0,33910.0,3.8592]
[1609878767752,0.13632608,33911.0,33908.0,1.84653678]
[1609878768158,0.5812,33910.0,33908.0,1.84653678]
[1609878768358,0.13632608,33911.0,33908.0,1.84653678]
[1609878769459,0.13632608,33911.0,33905.0,1.84824633]
[1609878769654,0.13632608,33906.0,33905.0,1.84824633]
[1609878770056,0.28292608,33906.0,33905.0,1.84824633]
[1609878770452,0.28292608,33906.0,33905.0,0.52354633]
[1609878770669,1.28292608,33906.0,33905.0,0.52354633]
[1609878770858,1.28292608,33906.0,33905.0,0.34554633]
[1609878771059,1.28292608,33906.0,33895.0,2.31030791]
[1609878771255,1.28292608,33906.0,33862.0,2.02829301]
[1609878771656,0.13632608,33877.0,33874.0,0.13632608]
[1609878771857,0.24469608,33877.0,33874.0,0.13632608]
[1609878772053,0.24469608,33877.0,33859.0,5.0]
[1609878772653,0.24469608,33877.0,33869.0,1.0]
[1609878773654,0.13632608,33870.0,33869.0,1.13632608]
[1609878773956,0.25637608,33870.0,33869.0,1.13632608]
[1609878774556,0.12005,33870.0,33869.0,1.13632608]
[1609878774755,0.12005,33870.0,33869.0,0.13632608]
[1609878775155,0.10477,33884.0,33869.0,0.28584608]
[1609878775755,0.10477,33884.0,33883.0,0.13632608]
[1609878776556,0.00372704,33899.0,33883.0,0.13632608]
[1609878776758,4.3041,33905.0,33883.0,0.13632608]
[1609878777655,0.13632608,33884.0,33883.0,0.13632608]
[1609878778057,0.27555608,33884.0,33883.0,0.13632608]
[1609878778460,3.77735608,33884.0,33883.0,0.13632608]
[1609878779059,3.77735608,33884.0,33857.0,3.9733]
[1609878779260,0.27555608,33884.0,33833.0,3.47]
[1609878779759,0.13923,33884.0,33879.0,0.13632608]
[1609878781661,0.13632608,33880.0,33879.0,0.13632608]
[1609878782062,0.13923,33884.0,33879.0,0.13632608]
[1609878782563,0.13923,33884.0,33883.0,1.0]
[1609878783361,4.71728,33891.0,33883.0,1.0]
[1609878783664,4.71728,33891.0,33890.0,0.13632608]
[1609878784765,0.09978,33891.0,33890.0,0.13632608]
[1609878785166,1.0,33902.0,33890.0,0.13632608]
[1609878785767,1.0,33902.0,33900.0,0.13632608]
[1609878786566,0.1466,33906.0,33901.0,6.0]
[1609878786767,0.29527338,33908.0,33901.0,6.0]
[1609878786967,0.29527338,33908.0,33900.0,0.13632608]
[1609878787768,0.29527338,33908.0,33907.0,0.13632608]
[1609878788368,0.01268161,33910.0,33907.0,0.13632608]
[1609878788969,0.01268161,33910.0,33909.0,1.0]
[1609878789970,0.26907608,33914.0,33909.0,1.0]
[1609878790870,0.26907608,33914.0,33907.0,0.13632608]
[1609878791671,0.26907608,33914.0,33913.0,0.13632608]
[1609878791871,0.13275,33914.0,33913.0,0.13632608]
[1609878792276,0.00369362,33937.0,33913.0,0.13632608]
[1609878792677,0.0036955,33939.0,33913.0,0.13632608]
[1609878792876,0.0036955,33939.0,33927.0,1.0]
[1609878793277,0.0126703,33942.0,33927.0,1.0]
[1609878793676,0.13632608,33928.0,33927.0,1.0]
[1609878793876,0.24029608,33928.0,33927.0,1.0]
[1609878795279,0.10397,33928.0,33927.0,1.0]
[1609878795483,0.10523,33928.0,33927.0,1.0]
[1609878795684,0.10523,33928.0,33927.0,4.7032]
[1609878796584,0.00369749,33945.0,33927.0,4.7032]
[1609878796781,0.00369749,33945.0,33927.0,1.0]
[1609878796980,0.00369749,33945.0,33941.0,4.369]
[1609878797382,0.00369749,33945.0,33941.0,4.50603]
[1609878797781,0.00369749,33945.0,33944.0,0.13632608]
[1609878798181,0.54998195,33949.0,33944.0,0.13632608]
[1609878798582,0.29146447,33955.0,33944.0,0.13632608]
[1609878798882,0.29146447,33955.0,33948.0,6.0]
[1609878799083,0.29146447,33955.0,33948.0,6.11287]
[1609878799482,0.0876,33954.0,33948.0,6.11287]
[1609878799682,0.0876,33954.0,33953.0,0.13632608]
[1609878800782,0.28659055,33955.0,33953.0,0.13632608]
[1609878802786,0.15026447,33955.0,33953.0,0.13632608]
[1609878802987,0.089,33954.0,33953.0,0.13632608]
[1609878803988,0.15026447,33955.0,33953.0,0.13632608]
[1609878804988,0.15026447,33955.0,33954.0,1.0]
[1609878806991,0.15026447,33955.0,33954.0,6.0]
[1609878807589,0.23766447,33955.0,33954.0,6.0]
[1609878807988,0.23766447,33955.0,33954.0,9.5856]
[1609878808389,0.15026447,33955.0,33954.0,9.5856]
[1609878809391,0.23956447,33955.0,33954.0,9.5856]
[1609878809591,0.23956447,33955.0,33954.0,6.0]
[1609878809992,0.15026447,33955.0,33954.0,6.0]
[1609878811394,0.23896447,33955.0,33954.0,6.0]
[1609878811894,0.15026447,33955.0,33954.0,6.0]
[1609878812396,0.23806447,33955.0,33954.0,6.0]
[1609878812998,0.15026447,33955.0,33953.0,0.13632608]
[1609878813999,0.0885,33954.0,33953.0,0.13632608]
[1609878814399,0.15026447,33955.0,33953.0,0.13632608]
[1609878814899,0.15026447,33955.0,33954.0,6.0]
[1609878815298,0.23916447,33955.0,33954.0,6.0]
[1609878815500,0.15026447,33955.0,33954.0,6.0]
[1609878816900,0.15026447,33955.0,33953.0,0.13632608]
[1609878817101,0.15026447,33955.0,33954.0,6.0]
[1609878817801,0.28659055,33955.0,33954.0,6.0]
[1609878818602,0.28659055,33955.0,33954.0,4.9901]
[1609878818802,5.74009055,33955.0,33932.0,1.0]
[1609878819001,5.74009055,33955.0,33929.0,1.0]
[1609878819202,0.0884,33954.0,33929.0,1.0]
[1609878819401,5.87187055,33955.0,33929.0,1.0]
[1609878819801,5.73554447,33955.0,33932.0,0.13632608]
[1609878820002,5.73554447,33955.0,33929.0,1.0]
[1609878820503,0.0883,33954.0,33929.0,1.0]
[1609878820703,5.73554447,33955.0,33929.0,1.0]
[1609878821003,4.73554447,33955.0,33928.0,1.0]
[1609878821209,1.0,33945.0,33928.0,1.0]
[1609878821608,1.09267,33945.0,33928.0,1.0]
[1609878821807,0.13632608,33929.0,33928.0,1.13632608]
[1609878822207,0.24936608,33929.0,33928.0,1.13632608]
[1609878823111,0.33646608,33929.0,33928.0,0.13632608]
[1609878824110,0.20014,33929.0,33928.0,0.13632608]
[1609878824510,0.0875,33934.0,33928.0,0.13632608]
[1609878824711,0.54880389,33944.0,33932.0,4.2586]
[1609878825111,0.54880389,33944.0,33933.0,6.0]
[1609878825610,0.0887,33943.0,33933.0,6.0]
[1609878825814,0.0887,33943.0,33942.0,0.13632608]
[1609878826014,0.54880389,33944.0,33942.0,0.13632608]
[1609878826212,0.12490389,33944.0,33943.0,0.5171]
[1609878826714,0.63663869,33950.0,33943.0,0.5171]
[1609878827014,0.63663869,33950.0,33943.0,6.5171]
[1609878827313,0.0882,33949.0,33943.0,6.5171]
[1609878827513,0.15026447,33955.0,33943.0,6.0]
[1609878827713,0.15026447,33955.0,33948.0,4.5703]
[1609878827912,0.15026447,33955.0,33954.0,0.13632608]
[1609878828514,0.23836447,33955.0,33954.0,0.13632608]
[1609878828918,0.15026447,33955.0,33954.0,0.13632608]
[1609878829116,0.15026447,33955.0,33954.0,1.13632608]
[1609878829618,0.15026447,33955.0,33954.0,1.0]
[1609878829817,0.28659055,33955.0,33954.0,1.0]
[1609878830218,0.37429055,33955.0,33954.0,1.0]
[1609878830518,0.28659055,33955.0,33954.0,0.8148]
[1609878830920,0.28659055,33955.0,33935.0,4.6466]
[1609878831322,0.28659055,33955.0,33877.0,1.0]
[1609878831524,0.28659055,33955.0,33898.0,6.37210839]
[1609878831923,0.15026447,33955.0,33939.0,0.13632608]
[1609878832123,0.0882,33954.0,33939.0,0.13632608]
[1609878833226,0.15026447,33955.0,33939.0,0.13632608]
[1609878833925,0.13632608,33940.0,33939.0,0.13632608]
[1609878834128,0.28403608,33940.0,33939.0,0.13632608]
[1609878838331,0.28403608,33940.0,33938.0,1.0]
[1609878838931,0.28403608,33940.0,33909.0,0.10623]
[1609878839132,3.3963,33939.0,33906.0,3.974]
[1609878839532,0.28403608,33940.0,33881.0,0.2964]
[1609878839732,4.2439,33927.0,33896.0,0.10739]
[1609878839935,4.34411,33927.0,33913.0,0.13632608]
[1609878840532,0.10021,33927.0,33913.0,0.13632608]
[1609878840734,4.5837,33925.0,33913.0,0.13632608]
[1609878840932,5.5837,33925.0,33913.0,0.13632608]
[1609878841732,1.0,33925.0,33913.0,0.13632608]
[1609878841934,4.09852608,33914.0,33908.0,1.0]
[1609878842132,0.23588608,33914.0,33908.0,1.0]
[1609878842835,0.23588608,33914.0,33902.0,1.0]
[1609878843936,0.13632608,33903.0,33902.0,1.0]
[1609878844137,0.28370608,33903.0,33902.0,1.0]
[1609878844940,0.28370608,33903.0,33895.0,0.13632608]
[1609878845340,0.14738,33903.0,33895.0,0.13632608]
[1609878845840,0.09956,33914.0,33902.0,0.13632608]
[1609878846041,0.13632608,33909.0,33902.0,0.13632608]
[1609878846842,0.13632608,33909.0,33908.0,1.0]
[1609878848844,0.13632608,33909.0,33894.0,1.0]
[1609878850045,4.5276,33910.0,33898.0,0.13632608]
[1609878850645,4.5276,33910.0,33894.0,1.0]
[1609878850845,4.5276,33910.0,33884.0,4.4241]
[1609878851045,0.09956,33914.0,33873.0,0.1267]
[1609878851245,3.9064,33904.0,33873.0,0.1267]
[1609878851546,4.00734,33904.0,33873.0,0.1267]
[1609878851947,0.10094,33904.0,33891.0,0.13632608]
[1609878852147,3.9601,33892.0,33891.0,0.13632608]
[1609878852546,4.09212,33892.0,33891.0,0.13632608]
[1609878852846,4.09212,33892.0,33873.0,0.1267]
[1609878853050,0.13202,33892.0,33873.0,0.1267]
[1609878853247,4.8241,33881.0,33853.0,1.86981284]
[1609878854249,0.11044,33884.0,33853.0,1.86981284]
[1609878854449,3.4584,33870.0,33853.0,1.98523284]
[1609878855253,3.4584,33870.0,33853.0,0.11542]
[1609878855451,3.4584,33870.0,33851.0,1.86725846]
[1609878856056,3.4584,33870.0,33865.0,0.13632608]
[1609878856655,3.4584,33870.0,33844.0,0.13748]
[1609878856855,1.0,33867.0,33850.0,1.0]
[1609878857055,3.5604,33856.0,33850.0,1.0]
[1609878857255,0.14034,33856.0,33850.0,1.0]
[1609878857957,0.14034,33856.0,33855.0,0.13632608]
[1609878859759,3.80394,33856.0,33855.0,0.13632608]
[1609878861062,0.14034,33856.0,33855.0,0.13632608]
[1609878862063,0.27666608,33856.0,33855.0,0.13632608]
[1609878862362,4.98986608,33856.0,33855.0,0.13632608]
[1609878863566,0.27666608,33856.0,33855.0,0.13632608]
[1609878863764,0.14034,33856.0,33855.0,0.13632608]
[1609878864382,1.0,33867.0,33855.0,0.13632608]
[1609878864966,0.44333537,33875.0,33866.0,1.0]
[1609878866068,0.44333537,33875.0,33874.0,0.13632608]
[1609878866469,0.17063537,33875.0,33874.0,0.13632608]
[1609878866872,0.17063537,33875.0,33874.0,6.13632608]
[1609878867771,0.29555109,33876.0,33874.0,6.13632608]
[1609878868369,0.29555109,33876.0,33874.0,9.66622608]
[1609878868969,0.29555109,33876.0,33875.0,1.0]
[1609878870973,0.29555109,33876.0,33874.0,0.13632608]
[1609878872075,0.43187717,33876.0,33874.0,0.13632608]
[1609878872878,0.29555109,33876.0,33874.0,0.13632608]
[1609878876980,0.29555109,33876.0,33875.0,1.0]
[1609878878981,0.29555109,33876.0,33875.0,6.0]
[1609878879583,0.13632608,33887.0,33875.0,6.0]
[1609878879983,0.13632608,33887.0,33886.0,0.13632608]
[1609878880884,0.13632608,33887.0,33886.0,1.13632608]
[1609878881285,0.75732608,33887.0,33886.0,1.13632608]
[1609878883286,0.621,33887.0,33886.0,1.13632608]
[1609878887993,0.13632608,33894.0,33886.0,1.13632608]
[1609878888894,0.13632608,33894.0,33892.0,1.0]
[1609878890995,0.13632608,33894.0,33886.0,1.0]
[1609878891198,0.24921608,33894.0,33886.0,1.0]
[1609878892097,0.13632608,33890.0,33888.0,0.13632608]
[1609878892897,0.13632608,33890.0,33889.0,1.0]
[1609878894303,0.13632608,33890.0,33889.0,0.8219]
[1609878894501,4.18382608,33890.0,33889.0,0.8219]
[1609878894702,4.18382608,33890.0,33875.0,1.0]
[1609878894902,4.1302,33876.0,33875.0,0.635]
[1609878895301,4.1302,33876.0,33863.0,1.906103]
[1609878895302,0.12148,33876.0,33863.0,1.906103]
[1609878895502,3.7976,33850.0,33843.0,1.9268128]
[1609878895702,0.12148,33876.0,33843.0,1.9268128]
[1609878895904,0.10798,33850.0,33843.0,1.9268128]
[1609878896103,5.09902608,33844.0,33836.0,1.93107948]
[1609878896502,0.13632608,33844.0,33836.0,1.93107948]
[1609878896905,0.02834608,33844.0,33833.0,1.9337839]
[1609878897403,0.02834608,33844.0,33840.0,1.0]
[1609878898204,0.02834608,33844.0,33843.0,0.13632608]
[1609878899605,0.10798,33850.0,33843.0,0.13632608]
[1609878900006,0.12148,33876.0,33843.0,0.13632608]
[1609878900205,0.12148,33876.0,33866.0,0.13632608]
[1609878900605,4.23255666,33889.0,33866.0,0.13632608]
[1609878901206,1.0,33885.0,33868.0,1.0]
[1609878901607,0.088,33884.0,33868.0,1.0]
[1609878901809,1.1369,33885.0,33868.0,1.0]
[1609878901810,4.9014,33869.0,33868.0,1.0]
[1609878902009,5.00879,33869.0,33868.0,1.0]
[1609878902207,5.14511608,33869.0,33868.0,1.0]
[1609878903207,5.14511608,33869.0,33859.0,0.13632608]
[1609878903408,6.14511608,33869.0,33859.0,0.13632608]
[1609878905712,6.14511608,33869.0,33852.0,1.0]
[1609878906112,6.00879,33869.0,33854.0,0.13632608]
[1609878906713,6.00879,33869.0,33852.0,1.0]
[1609878906914,1.10739,33869.0,33852.0,1.0]
[1609878907116,4.7191,33860.0,33852.0,1.0]
[1609878907314,1.0,33855.0,33838.0,1.0]
[1609878907515,1.13073,33855.0,33838.0,1.0]
[1609878908115,1.13073,33855.0,33849.0,0.13632608]
[1609878908515,3.3133,33850.0,33838.0,1.0]
[1609878908716,1.13073,33855.0,33838.0,1.0]
[1609878909314,0.13073,33855.0,33837.0,0.13751]
[1609878910115,0.26705608,33855.0,33854.0,0.13632608]
[1609878910516,0.26705608,33855.0,33837.0,0.13751]
[1609878911317,0.26705608,33855.0,33829.0,2.07125249]
[1609878911318,0.26705608,33855.0,33829.0,0.13341]
[1609878911517,4.782,33849.0,33829.0,0.13341]